Cogmind - Beta 17 @@@ ROGUE MODE // 2026.08.13 @ 22:53:30 Player: Alicianrone Result: Core melted Performance ------------- Evolutions (2) 1000 Regions Visited (5) 1000 Robots Destroyed (57) 285 Value Destroyed (1574) 1574 Prototype IDs (25) 500 Alien Tech Used (0) 0 Bonus (9062) 9062 TOTAL SCORE: 13421 Bonus ------- Follower Combat Kills 62 Prayed to X0-1V1 5000 Major X0-1V1 Interference 700 Subatomizer Sterilization 3000 Aligned with FarCom 300 Cogmind --------- Core Integrity 0/350 Matter 203/900 Energy 1422/1480 System Corruption 0% Temperature Critical (1537) Movement Core (1700) Ox33 Location -8/Materials Parts ------- > --- POWER (1) -------- Heavy Ion Engine > --- PROPULSION (3) --- Wheel Subdweller Monowheel Subdweller Monowheel > --- UTILITY (4) ------ Huge Storage Unit Subdweller Optics X0-1V1's Piety Tracker > --- WEAPON (3) ------- Minigun Minigun Grenade Launcher > --- INVENTORY (25) --- Subdweller Power Source Subdweller Power Source Subdweller Power Source Reinforced Deuterium Engine Fission Core Light Fission Core Light Treads Armored Treads Armored Treads Advanced Treads VSS Leg VSS Leg Subdweller Optics Experimental Sensor Array Hardened Medium Armor Plating Hardened Medium Armor Plating Hardlight Generator High-powered Tractor Beam Trap Extractor (0/4) Minigun Minigun Minigun Gauss Rifle AWS/Gauss Peak State ------------ > --- POWER ------------ Heavy Ion Engine > --- PROPULSION ------- Armored Treads Advanced Treads Wheel > --- UTILITY ---------- Huge Storage Unit Hardened Medium Armor Plating Hacking Suite X0-1V1's Piety Tracker > --- WEAPON ----------- Minigun Minigun Gauss Rifle > --- INVENTORY -------- Subdweller Power Source Subdweller Power Source Subdweller Power Source Reinforced Deuterium Engine Fission Core Light Fission Core Light Treads Light Treads Armored Treads VSS Leg VSS Leg Subdweller Monowheel Subdweller Monowheel High-capacity Matter Pod Subdweller Optics Subdweller Optics Experimental Sensor Array Hardlight Generator Trap Extractor Minigun Minigun Minigun AWS/Gauss Grenade Launcher [Rating: 48] Favorites ----------- Power Ion Engine Engine Ion Engine Propulsion Wheel Treads Armored Treads Wheel Wheel Utility Huge Storage Unit Device X0-1V1's Piety Tracker Storage Huge Storage Unit Hackware Hacking Suite Protection Medium Armor Plating Weapon EM Pulse Gun Energy Gun EM Pulse Gun Ballistic Gun Assault Rifle Ballistic Cannon Light Cannon Launcher Grenade Launcher Build | -11 -10 -10 -10 -9 -8 ------- Run | Yrd Mat Min Exi Min Mat Slots Evolved 4 | . . . . . 4 Power . | . . . . . . Propulsion 1 | . . . . . 1 Utility 2 | . . . . . 2 Weapon 1 | . . . . . 1 Parts Attached 50 | 7 19 5 . 1 18 Power 7 | 1 2 1 . . 3 Engine 7 | 1 2 1 . . 3 Core . | . . . . . . Reactor . | . . . . . . Propulsion 16 | 2 7 2 . . 5 Treads 7 | . 4 . . . 3 Leg . | . . . . . . Wheel 9 | 2 3 2 . . 2 Hover . | . . . . . . Flight . | . . . . . . Utility 11 | 2 3 1 . . 5 Device 4 | 1 1 1 . . 1 Storage 3 | 1 2 . . . . Processor . | . . . . . . Hackware 1 | . . . . . 1 Protection 3 | . . . . . 3 Artifact . | . . . . . . Weapon 16 | 2 7 1 . 1 5 Energy Gun 5 | 1 3 . . 1 . Energy Cannon . | . . . . . . Ballistic Gun 9 | 1 3 1 . . 4 Ballistic Cannon 1 | . . . . . 1 Launcher 1 | . 1 . . . . Special Weapon . | . . . . . . Impact Weapon . | . . . . . . Slashing Weapon . | . . . . . . Piercing Weapon . | . . . . . . Special Melee Weapon . | . . . . . . Unidentified Prototypes 2 | . . 1 . . 1 Parts Lost 10 | . 7 . . . 3 Power 2 | . 1 . . . 1 Propulsion 3 | . 2 . . . 1 Utility 2 | . 1 . . . 1 Weapon 3 | . 3 . . . . Highest Loss Streak 5 | . 5 . . . 2 To Critical Strikes . | . . . . . . Average Backups 19 | 1 13 24 24 24 23 Power 3 | . 1 3 5 6 5 Propulsion 5 | 1 5 6 6 6 6 Utility 5 | . 2 8 8 7 6 Weapon 3 | . 3 4 4 4 4 Tool/Special . | . . . . . . Unused Backups 28 | . . 1 2 . 25 Power 5 | . . . . . 5 Propulsion 7 | . . . . . 7 Utility 9 | . . . . . 9 Weapon 5 | . . . 1 . 4 Tool/Special 2 | . . 1 1 . . Average Slot Usage (%) 96 | . 96 100 100 100 91 Engine 12 | . 13 14 14 14 9 Treads 3 | . 4 . . . 8 Wheel 23 | . 23 28 28 28 17 Device 12 | . 11 14 14 14 10 Storage 12 | . 14 14 14 14 9 Protection 1 | . . . . . 7 Energy Gun 9 | . 11 14 14 13 1 Ballistic Gun 16 | . 15 14 14 13 22 Peak Build Rating 48 | 7 11 25 27 27 48 Average Rating 22 | 4 8 19 26 26 41 On Entrance 16 | . 7 11 25 27 27 Avg Prop Armor Cover (%) 7 | . . . . . 7 Naked Turns . | . . . . . . Heaviest Build 107 | 13 90 93 93 93 107 Greatest Support 40 | 26 40 20 20 20 30 Greatest Overweight (x) 33 | . 4 4 4 4 33 Average Overweight (x) 3 | . 2 4 4 4 5 Largest Inventory Capacity 25 | 8 25 25 25 25 25 Average Capacity 23 | 6 22 25 25 25 25 Most Carried 25 | 2 23 25 25 25 25 Average Carried 20 | 1 13 24 24 24 24 Final Capacity 25 | 8 25 25 25 25 25 Final Carried 25 | 2 23 23 25 25 25 Class Distribution -------------------- 45% | Mutant 28% | Scavenger-Mutant 24% | Scavenger-Skirmisher Dominant Class ---------------- Mutant | -10/Materials Mutant | -10/Mines Scavenger-Mutant | -10/Exiles Scavenger-Mutant | -9/Mines Scavenger-Skirmisher | -8/Materials Resources | -11 -10 -10 -10 -9 -8 ----------- Run | Yrd Mat Min Exi Min Mat Matter Collected 1872 | 285 762 236 . 87 502 Remotely . | . . . . . . Salvage Created 1846 | 89 821 171 . 39 726 Parts 127 | 9 50 13 . 9 46 Haulers Intercepted 4 | . 2 . . . 2 Recyclers Shooed . | . . . . . . Parts Field Recycled . | . . . . . . Retrieved Matter . | . . . . . . Parts Self-Destructed . | . . . . . . Prevented . | . . . . . . Parts Restored . | . . . . . . Kills | -11 -10 -10 -10 -9 -8 ------- Run | Yrd Mat Min Exi Min Mat Combat Hostiles Destroyed 41 | . 19 3 . 6 13 Guns 23 | . 14 3 . . 6 Cannons 1 | . . . . . 1 AOE 17 | . 5 . . 6 6 Classes Destroyed 11 | 1 5 1 . . 4 Worker 2 | . . . . . 2 Tunneler 5 | 4 . . . . 1 Hauler 4 | . 2 . . . 2 Operator 1 | . 1 . . . . Watcher 4 | . 3 . . . 1 Swarmer 11 | . 5 . . 6 . Grunt 21 | . 14 . . . 7 Duelist 1 | . . . . . 1 Sentry 6 | . . 3 . . 3 Hunter 1 | . . . . . 1 Heavy 1 | . . . . . 1 Best Kill Streak 6 | 4 6 1 . 3 6 Combat Bots Only 5 | . 5 1 . 3 4 Max Kills in Single Turn 3 | 1 2 1 . 2 3 Gunslinging 1 | . 1 . . . . Exploded 2 | . 2 . . 2 2 Melee . | . . . . . . Uniques/NPCs Destroyed . | . . . . . . Combat | -11 -10 -10 -10 -9 -8 -------- Run | Yrd Mat Min Exi Min Mat Hostile Shots Fired 138 | . 91 12 . 11 24 Missed 38 | . 21 3 . 5 9 Hits 100 | . 70 9 . 6 15 Projectile 100 | . 70 9 . 6 15 Critical Strikes 2 | . 1 1 . . . Damage Taken 1834 | . 920 133 . 62 719 Core 524 | . 133 15 . . 376 Absorbed by Shields . | . . . . . . Core Remaining (%) 84 | 100 . . . 68 . Volleys Fired 126 | 10 74 8 . 4 30 Largest 3 | 2 2 2 . 1 3 Hottest 83 | 60 60 63 . 30 83 Shots Fired 259 | 20 142 17 . 4 76 Gun 242 | 20 136 17 . . 69 Cannon . | . . . . . . Launcher 17 | . 6 . . 4 7 Special . | . . . . . . Kinetic 149 | 10 74 8 . . 57 Thermal . | . . . . . . Explosive 17 | . 6 . . 4 7 Electromagnetic 93 | 10 62 9 . . 12 Robot Hit Streak 17 | 4 8 17 . . 12 Robot Miss Streak 5 | 3 5 1 . . 2 Penetration Max . | . . . . . . Secondary Targets 3 | . 3 . . . . Max Gunslinging Chain 1 | . 1 . . . . Autonomous 8 | . . . . . 8 Shots Hit Robots 156 | 11 81 15 . . 49 Core Hits 99 | 5 45 6 . 6 37 Critical Kills . | . . . . . . Critical Parts Destroyed 1 | . . . . . 1 Critical Strikes 3 | . 1 1 . . 1 Destroy 1 | . . . . . 1 Corrupt 2 | . 1 1 . . . Melee Attacks . | . . . . . . Impact . | . . . . . . Slashing . | . . . . . . Piercing . | . . . . . . Sneak Attacks . | . . . . . . Combat Hostiles . | . . . . . . Follow-up Attacks . | . . . . . . Damage Inflicted 3684 | 158 1495 188 . 346 1497 Guns 2179 | 158 1050 188 . . 783 Cannons 128 | . . . . . 128 Explosions 1377 | . 445 . . 346 586 Melee . | . . . . . . Ramming . | . . . . . . Kinetic 1339 | 93 464 99 . . 683 Thermal 251 | . 123 . . . 128 Explosive 1254 | . 322 . . 346 586 Electromagnetic 840 | 65 586 89 . . 100 Impact . | . . . . . . Slashing . | . . . . . . Piercing . | . . . . . . Highest Corruption 2 | . . . . . 2 Average Corruption 2 | . . . . . 2 Corruption Purged . | . . . . . . Corruption Blocked . | . . . . . . Effects 11 | . . . . . 11 Message Errors 3 | . . . . . 3 Matter Fused 3 | . . . . . 3 Heat Flow Errors 1 | . . . . . 1 Energy Discharges 3 | . . . . . 3 Data Loss (minor) 1 | . . . . . 1 Overload Shots . | . . . . . . Overflow Damage 10 | . 10 . . . . Projectiles . | . . . . . . Explosions 10 | . 10 . . . . Melee . | . . . . . . Knockbacks . | . . . . . . Impact . | . . . . . . Kinetic . | . . . . . . Secondary . | . . . . . . Self-Inflicted Damage 69 | . 42 . . 12 15 Shots 3 | . 1 . . 1 1 Rammed . | . . . . . . Targets Rammed . | . . . . . . Kicked . | . . . . . . Crushed . | . . . . . . Highest Temperature 1537 | . 121 30 . . 1537 Average Temperature 226 | . 34 14 . . 335 Received Heat Transfer 603 | . 486 54 . . 63 Effects 43 | . . . . . 43 Energy Bleed 6 | . . . . . 6 Interference 2 | . . . . . 2 Matter Decay 4 | . . . . . 4 Short Circuit 3 | . . . . . 3 Damage (minor) 5 | . . . . . 5 Damage (major) 16 | . . . . . 16 Damage (core) 7 | . . . . . 7 Siege Activations . | . . . . . . Martial Activations . | . . . . . . Shielding Activations . | . . . . . . Robots Disrupted . | . . . . . . Combat Hostiles . | . . . . . . Robots Corrupted . | . . . . . . Combat Hostiles . | . . . . . . Parts Fried 1 | . 1 . . . . Impact Corruptions . | . . . . . . Robots Melted . | . . . . . . Combat Hostiles . | . . . . . . Parts Melted 1 | . . . . . 1 Heat Transferred 200 | . 150 . . . 50 Parts Sabotaged . | . . . . . . Parts Stolen . | . . . . . . Parts Stripped . | . . . . . . Power Chain Reactions 2 | . 2 . . . . Alert | -11 -10 -10 -10 -9 -8 ------- Run | Yrd Mat Min Exi Min Mat Maximum Alert Level 1 | . 1 . . . 1 Low Security (%) 79 | 100 64 100 . 100 77 Level 1 20 | . 35 . . . 22 Level 2 . | . . . . . . Level 3 . | . . . . . . Level 4 . | . . . . . . Level 5 . | . . . . . . High Security . | . . . . . . Max Security . | . . . . . . Sterilizations 1 | . . . . . 1 Peak Influence 323 | 15 323 27 . 161 306 Initial 50 | . 3 27 . . 50 Average 99 | 2 177 2 . 69 87 Influence Increases 1647 | 20 680 63 . 201 683 Destroy 0b10 Robot/C 860 | . 380 60 . 120 300 Destroy 0b10 Robot/NC 85 | 20 30 . . . 35 Destroy Leader 206 | . 100 . . 20 86 Allied During Kill 65 | . . 3 . 22 40 Successful Hack 12 | . 12 . . . . Select Force Hacks 90 | . 60 . . . 30 Disable Machine 60 | . 15 . . 15 30 Destroy Structure 92 | . 38 . . 24 30 Lose Combat Pursuer 45 | . 45 . . . . Miscellaneous 132 | . . . . . 132 Influence Decreases 1531 | 15 614 134 . 70 698 Entered New Map 127 | . 2 44 . . 81 Time Decay 1103 | 15 542 90 . 70 386 Lost Part 91 | . 70 . . . 21 Lost Ally 60 | . . . . . 60 Purge Threat 150 | . . . . . 150 Squads Dispatched 10 | . 5 . . . 5 Investigation 4 | . 3 . . . 1 Extermination . | . . . . . . Reinforcement 4 | . 2 . . . 2 Assault 2 | . . . . . 2 Garrison . | . . . . . . Intercept . | . . . . . . Searches Triggered . | . . . . . . Construction Impeded 1 | . . . . . 1 Haulers Reinforced . | . . . . . . Active Scanning Responses . | . . . . . . Cargo Convoy Interrupts . | . . . . . . Stealth | -11 -10 -10 -10 -9 -8 --------- Run | Yrd Mat Min Exi Min Mat Distress Signals . | . . . . . . Communications Jammed . | . . . . . . Distress Signals . | . . . . . . Times Spotted 59 | . 31 3 . 7 18 Peak Tracking Total 5 | . 5 1 . 4 4 Tactical Retreats 3 | . 3 . . . . Traps | -11 -10 -10 -10 -9 -8 ------- Run | Yrd Mat Min Exi Min Mat Traps Triggered 4 | . 3 . . . 1 Indirectly . | . . . . . . Trap Hack Attempts . | . . . . . . Triggered . | . . . . . . Disarmed . | . . . . . . Reprogrammed . | . . . . . . Reused . | . . . . . . Traps Extracted . | . . . . . . Installed . | . . . . . . Triggered . | . . . . . . Machines | -11 -10 -10 -10 -9 -8 ---------- Run | Yrd Mat Min Exi Min Mat Machines Disabled 4 | . 1 . . 1 2 Max in Single Turn 1 | . 1 . . 1 1 Garrison Access 1 | . . . . . 1 Machines Repaired . | . . . . . . Machines Dismantled . | . . . . . . Machines Sabotaged . | . . . . . . Overloaded Fab Kills . | . . . . . . Hacking | -11 -10 -10 -10 -9 -8 --------- Run | Yrd Mat Min Exi Min Mat Machines Accessed 11 | . 6 . 2 . 3 Terminals 5 | . 3 . . . 2 Fabricators . | . . . . . . Repair Stations 1 | . 1 . . . . Recycling Units 3 | . 2 . . . 1 Scanalyzers . | . . . . . . Garrison Access . | . . . . . . Total Hacks 19 | . 13 . 2 . 4 Successful 11 | . 6 . 2 . 3 Failed 8 | . 7 . . . 1 Catastrophic 4 | . 3 . . . 1 Database Lockouts . | . . . . . . Manual 15 | . 11 . 1 . 3 Terminals 10 | . 7 . . . 3 Fabricators . | . . . . . . Repair Stations 4 | . 4 . . . . Recycling Units 3 | . 2 . . . 1 Scanalyzers . | . . . . . . Garrison Access . | . . . . . . Terminal Hacks 4 | . . . 2 . 2 Record 1 | . . . 1 . . Unreport Threat 1 | . . . . . 1 Locate Traps 1 | . . . . . 1 Proto ID Catalog 1 | . . . 1 . . Fabricator Hacks . | . . . . . . Repair Station Hacks 3 | . 3 . . . . Refit 3 | . 3 . . . . Recycling Unit Hacks . | . . . . . . Scanalyzer . | . . . . . . Garrison Access Hacks . | . . . . . . Unauthorized Hacks 4 | . 3 . . . 1 Terminals 1 | . 1 . . . . Operators 1 | . 1 . . . . Fabricators . | . . . . . . Repair Stations . | . . . . . . Recycling Units 3 | . 2 . . . 1 Tunnel 3 | . 2 . . . 1 Scanalyzers . | . . . . . . Garrison Access . | . . . . . . Data Cores Recovered 1 | . . . . . 1 Used . | . . . . . . Hacking Detections 6 | . 4 . . . 2 Full Trace Events 1 | . 1 . . . . Feedback Events . | . . . . . . Feedback Blocked . | . . . . . . Robot Schematics Acquired . | . . . . . . Robots Built . | . . . . . . Authchips . | . . . . . . Time . | . . . . . . Total Robot Build Rating . | . . . . . . Part Schematics Acquired . | . . . . . . Parts Built . | . . . . . . Authchips . | . . . . . . Time . | . . . . . . Total Part Build Rating . | . . . . . . Part Studies Acquired . | . . . . . . Parts Repaired . | . . . . . . Time . | . . . . . . Parts Recycled . | . . . . . . Recycled Matter . | . . . . . . Retrieved Matter . | . . . . . . Retrieved Components . | . . . . . . Parts Scanalyzed . | . . . . . . Part Schematics Acquired . | . . . . . . Parts Damaged . | . . . . . . Bothacking | -11 -10 -10 -10 -9 -8 ------------ Run | Yrd Mat Min Exi Min Mat Used RIF Installer . | . . . . . . Robots Hacked . | . . . . . . Non-combat . | . . . . . . Combat . | . . . . . . Robot Hacks Applied . | . . . . . . Relay Couplers Released . | . . . . . . Fabnet Peak Effective % . | . . . . . . Robots Rewired . | . . . . . . Allies Hacked . | . . . . . . Hacks Repelled . | . . . . . . Allies | -11 -10 -10 -10 -9 -8 -------- Run | Yrd Mat Min Exi Min Mat Total Allies 3 | . . 3 . . . Largest Group 3 | . . 3 3 3 3 Highest-Rated Group 40 | . . 40 40 40 40 Highest-Rated Ally 16 | . . 16 16 16 16 Total Orders . | . . . . . . Ally Attacks 43 | . . . . . 43 Total Damage 489 | . . . . . 489 Kills 3 | . . . . . 3 Allies Corrupted . | . . . . . . Allies Melted . | . . . . . . X0-1V1 Amusement Gains 113 | . 9 . . 20 84 Good Acts 14 | . 1 1 . . 12 Bad Acts 6 | . . 5 . . 1 Intel | -11 -10 -10 -10 -9 -8 ------- Run | Yrd Mat Min Exi Min Mat Active Infowar (turns) 1791 | 5 1298 376 . . 112 Optics 112 | . . . . . 112 Seismic 1679 | 5 1298 376 . . . Robot Analysis Total . | . . . . . . Derelict Logs Recovered 1 | . . 1 . . . Drone Launches . | . . . . . . Drone Recoveries . | . . . . . . Exploration | -11 -10 -10 -10 -9 -8 ------------- Run | Yrd Mat Min Exi Min Mat Turns Passed 4926 | 87 1657 1017 692 203 1270 Spaces Moved 2859 | 50 899 639 481 130 660 Core 5 | 2 . . . . 3 Treads 11 | . 11 . . . . Legs . | . . . . . . Wheels 2843 | 48 888 639 481 130 657 Hover . | . . . . . . Flight . | . . . . . . Fastest Speed 50 | 50 90 140 140 140 131 Average Speed 143 | 89 131 140 140 140 171 Slowest Speed 1700 | 100 320 140 140 140 1700 Overloaded Moves . | . . . . . . Propulsion Burnouts . | . . . . . . Robots Hopped . | . . . . . . Potential Cave-ins . | . . . . . . Cave-ins Triggered . | . . . . . . Exploration Rate (%) 59 | 4 98 98 62 30 64 Regions Visited 5 Branch Regions 3 Pre-discovered Areas 5 | . 2 . 1 1 1 Known Exits Taken . | . . . . . . Unknown Exits Taken 5 | 1 1 1 1 1 . Scrap Searched 4 | . . 3 . 1 . Spaces Dug . | . . . . . . Terrain Destroyed 92 | . 32 . . 31 29 Melee . | . . . . . . Projectile 1 | . . . . . 1 AOE 91 | . 32 . . 31 28 Terrain Rammed . | . . . . . . Walls Destroyed . | . . . . . . Machines Disabled . | . . . . . . Actions | -11 -10 -10 -10 -9 -8 --------- Run | Yrd Mat Min Exi Min Mat Total 3444 | 68 1218 753 503 145 757 Wait 273 | . 162 82 14 5 10 Move 2854 | 49 898 638 480 129 660 Hop . | . . . . . . Pick Up 60 | 2 28 9 5 1 15 Fast Attach 16 | 7 2 . . . 7 Attach 18 | . 10 . . . 8 Detach 5 | . 4 . . . 1 Swap 53 | . 34 5 . 5 9 Drop 39 | . 6 11 4 1 17 Fire 126 | 10 74 8 . 4 30 Melee . | . . . . . . Ram . | . . . . . . Kick . | . . . . . . Crush . | . . . . . . Escape Stasis . | . . . . . . Rewire . | . . . . . . Trap . | . . . . . . Miscellaneous . | . . . . . . Route ------- -11/Scrapyard -10/Materials (discovered 6 exits: [*Mat x3] / [*Min x2] / [*Sub]) -10/Mines (discovered 3 exits: [*Mat x2] / *Exi) -10/Exiles -9/Mines -8/Materials (discovered 4 exits: *Fac x3 / Sto) History --------- Turn | Location | Event 41 | -11/Scrapyard | Discovered new exit (range 15) 88 | -11/Scrapyard | Entered Materials 328 | -10/Materials | Discovered new exit (range 16) 333 | -10/Materials | Build established: Mutant 482 | -10/Materials | Discovered new exit (range 15) 547 | -10/Materials | Discovered new exit (range 16) 688 | -10/Materials | Derelicts attacked the area 1048 | -10/Materials | Core integrity fell below 50% 1134 | -10/Materials | Lost 5 parts (1p2n1u1w) 1201 | -10/Materials | Discovered new exit (range 10) 1351 | -10/Materials | Discovered new exit (range 6) 1359 | -10/Materials | Discovered new exit (range 3) 1646 | -10/Materials | Prayed at D.C.S.S. Altar Unit 1705 | -10/Materials | Matter capacity permanently improved by X0-1V1 (+200; -100 max core) 1745 | -10/Materials | Entered Mines 1771 | -10/Mines | Discovered new exit (range 6) 1789 | -10/Mines | Met a Derelict bent on vengeance 1823 | -10/Mines | X0-1V1 activates XOMVISION 1868 | -10/Mines | Found a damaged Exp. Sensor Array with a note attached 1871 | -10/Mines | Found Prototype Device 2156 | -10/Mines | Learned location of 1 exit from Materials 2299 | -10/Mines | Assisted by bots powering up and referring to "LRC-V3" 2404 | -10/Mines | Deemed a non-threat by the Exiles lab entrance 2404 | -10/Mines | Discovered new exit (range 5) 2418 | -10/Mines | Discovered new exit (range 7) 2576 | -10/Mines | Build established: Scavenger-Mutant 2762 | -10/Mines | Entered Exiles 2762 | -10/Exiles | Accompanied by 3 allies 2802 | -10/Exiles | Met 8R-AWN 2822 | -10/Exiles | Met EX-HEX 2868 | -10/Exiles | Met EX-BIN 2884 | -10/Exiles | Aligned with FarCom system 2885 | -10/Exiles | Given EX-Vault access code 2920 | -10/Exiles | Opened EX-Vault 2984 | -10/Exiles | Warned to stay clear of 0b10 Research branches 3028 | -10/Exiles | Met EX-DEC 3033 | -10/Exiles | Learned location of Zion (-7) 3106 | -10/Exiles | Found Chronowheel 3322 | -10/Exiles | Found AWS/Gauss 3436 | -10/Exiles | Discovered new exit (range 14) 3454 | -10/Exiles | Left Exiles lab with AWS/Gauss 3454 | -10/Exiles | Entered Mines 3454 | -9/Mines | Accompanied by 3 allies 3455 | -9/Mines | Learned location of Storage (-8) 3630 | -9/Mines | Discovered new exit (range 16) 3649 | -9/Mines | Assembled infested the area 3654 | -9/Mines | Assisted by a Guerilla fighting off Assembled 3657 | -9/Mines | Entered Materials 3657 | -8/Materials | Accompanied by 3 allies 3657 | -8/Materials | Evolved 4 slots: Propulsion x1, Utility x2, Weapon x1 3658 | -8/Materials | Identified exit to Factory 3820 | -8/Materials | X0-1V1 released a cloud of subatomizers 3862 | -8/Materials | X0-1V1 revealed exit location to -7/Factory 3945 | -8/Materials | Identified exit to Storage 3945 | -8/Materials | X0-1V1 revealed exit location to -8/Storage 3989 | -8/Materials | Build established: Scavenger-Skirmisher 4153 | -8/Materials | Sterilization system engaged 4153 | -8/Materials | Non-combat units ordered to evacuate 4253 | -8/Materials | Combat units ordered to evacuate 4407 | -8/Materials | X0-1V1 activates XOMVISION 4453 | -8/Materials | Ambient heat levels rising (+10) 4536 | -8/Materials | Discovered exit to Factory (range 13) 4571 | -8/Materials | X0-1V1 foreshadows a heat wave 4603 | -8/Materials | Ambient heat levels rising (+10) 4640 | -8/Materials | Energy generation permanently improved by X0-1V1 (+10; -100 max core) 4753 | -8/Materials | Ambient heat levels rising (+10) 4800 | -8/Materials | Ambient heat levels rising (+10) 4841 | -8/Materials | X0-1V1 added 0b10 threat records associated with you (minor) 4900 | -8/Materials | Core integrity fell below 50% 4903 | -8/Materials | Ambient heat levels rising (+10) 4907 | -8/Materials | Core integrity fell below 20% 4928 | -8/Materials | Core melted Last Messages --------------- 04896_ Overheating: Broken Sub. Monowheel damaged (-15). 04899_ Overheating: Core damaged (-45). 04900_ Overheating: Core damaged (-66). 04903_ ALERT: Ambient heat levels +10. 04905_ Overheating: Minigun damaged (-11). 04907_ Overheating: Core damaged (-66). 04907_ X0-1V1 is interested. 04910_ Overheating: Core damaged (-35). 04911_ Overheating: Grenade Launcher damaged (-1). 04913_ Overheating: Broken Sub. Monowheel damaged (-8). 04913_ Overheating: Grenade Launcher damaged (-1). 04913_ Overheating: Minigun damaged (-5). 04919_ Overheating: Energy bleed (-192). 04920_ Overheating: Matter decay (-27). 04928_ Overheating: Core damaged (-56). 04928_ X0-1V1 howls with laughter! Map ----- +----------------------------------------------------+ | " ##??????????????????? | | " #??????????????????? | | """# #??????????????????? | | # #??????????????????? | | ###### #??????????????????? | | #??????????????????? | | #########??????????????????? | | #??????????????????????????? | | ## #######??????????????????????????? | | ## #????????????????????????????? | | # !#??????????????!#????????????? | | # " #?????????????? !????????????? | | # " #?????????????? ????????????? | | #" #?????????????# #???????????? | | #""" #?????????????+ ???????????? | | # "" #?????????????# ???????????? | | #""" #?????????????+ #???????????? | | ?#""" #?????????????# #???????????? | | ??""" !#?????????????# #???????????? | | ???" #?????????????+ #???????????? | | ???? #?????????????# #???????????? | | ????####?????????????# #???????????? | | ?????????????????????# #??????>????? | | ?????????????????????# #???????????? | | ###################### ####????????? | | * " """ # @ +????????? | | ######### T """"" ####????????? | | ????????# """ # #???????????? | | ????????# # #???????????? | | ????????# ] / # ??????????? | | ????????############## ?????????? | | ?????????????????????###+###????????? | | ????????????????????????????????????? | | ????????????????????????????????????? | | ????????????????????????????????????? | | ????????????????????????????????????? | | ????????????????????????????????????? | | | | | | | | | | | | | | | | | | | | | | | | | | | +----------------------------------------------------+ Best States ------------- Heat Dissipation 31 Energy Generation 24 Energy Capacity 1480 Matter Stores 500 Matter Capacity 900 Sight Range 21 Terrain Scan Density 10 Armor Coverage 225 Evasion (%) 42 Recoil Reduction 2 Offensive Hacking 10 Item Schematics ----------------- None Robot Schematics ------------------ None Fabricated ------------ Nothing Repaired ---------- Nothing Studied --------- None Alien Tech Used ----------------- None Achievements -------------- None Challenges ------------ None Game ------ Seed TargetSpliceJoltstriker Manual? 0 Play Time 00:30:43 Cumulative 1010.2 hours Start 2026.08.13 @ 22:24:20 End 2026.08.13 @ 22:53:30 Sessions 1 Manual Loads 0 Difficulty Rogue Special Mode None Game No. 277 Rogue 277 Adventurer 0 Explorer 0 Win Type - Total 44 Types 13/9/10/2/2/0/4/1/1/2 Lore% 97 Gallery% 91 Achievement% 87 Wizard Run 0 Options --------- Layout 1 ASCII 0 Keyboard 0 Movement Mouse Keybinds 0 Fullscreen 2 Font 32/SmallcapsGlow Map View 50x35 Zoom Use 0% Tactical HUD 1 Map Filters NONE Filters NONE Steam 1 RUN: c8cb5d34-740b-46f8-94b3-0812a3eb31ff